[Event "*** Titled Tuesday Blitz"]
[Site "Chess.com"]
[Date "2019.03.05"]
[Round "4"]
[White "Swarnapuri"]
[Black "Pechen_Yeltsina"]
[Result "1-0"]
[WhiteElo "2719"]
[BlackElo "2647"]
[TimeControl "180+2"]
[EndTime "13:57:47 PST"]
[Termination "Swarnapuri won by checkmate"]

1. d4 {[%clk 0:03:01.9]} 1... g6 {[%clk 0:02:59.7]} 2. Bf4 {[%clk 0:03:02.5]}
2... Bg7 {[%clk 0:03:00.6]} 3. e3 {[%clk 0:03:04.1]} 3... d6 {[%clk 0:03:02]} 4.
Nf3 {[%clk 0:03:05.7]} 4... Nd7 {[%clk 0:03:03.5]} 5. h3 {[%clk 0:03:07.4]} 5...
e5 {[%clk 0:03:04.6]} 6. Bh2 {[%clk 0:03:08.6]} 6... Ne7 {[%clk 0:03:02.3]} 7.
Be2 {[%clk 0:03:09.4]} 7... O-O {[%clk 0:03:03.8]} 8. O-O {[%clk 0:03:10.8]}
8... b6 {[%clk 0:03:05.2]} 9. a4 {[%clk 0:03:11.6]} 9... Bb7 {[%clk 0:03:03.8]}
10. a5 {[%clk 0:03:12.1]} 10... h6 {[%clk 0:02:55.2]} 11. Na3 {[%clk 0:03:11.1]}
11... Nf5 {[%clk 0:02:46.9]} 12. c3 {[%clk 0:02:56.1]} 12... Nh4 {[%clk
0:02:34.7]} 13. Nxh4 {[%clk 0:02:48.6]} 13... Qxh4 {[%clk 0:02:36.6]} 14. Nb5
{[%clk 0:02:45.6]} 14... Qd8 {[%clk 0:02:20.2]} 15. a6 {[%clk 0:02:43.6]} 15...
Bc6 {[%clk 0:02:12.4]} 16. Na3 {[%clk 0:02:36]} 16... Nf6 {[%clk 0:02:10.3]} 17.
dxe5 {[%clk 0:02:34.2]} 17... dxe5 {[%clk 0:02:11.9]} 18. Bxe5 {[%clk
0:02:32.8]} 18... Qe7 {[%clk 0:02:12.3]} 19. Bh2 {[%clk 0:02:32]} 19... Rad8
{[%clk 0:02:12.4]} 20. Qb3 {[%clk 0:02:32.9]} 20... Rd2 {[%clk 0:02:10.2]} 21.
Rfe1 {[%clk 0:02:33.9]} 21... Ne4 {[%clk 0:02:06.3]} 22. Nc4 {[%clk 0:02:33.6]}
22... Nc5 {[%clk 0:02:04.4]} 23. Qb4 {[%clk 0:02:28.8]} 23... Rd7 {[%clk
0:01:54.4]} 24. Bg3 {[%clk 0:02:14.6]} 24... Rfd8 {[%clk 0:01:51.5]} 25. Kh2
{[%clk 0:02:11.2]} 25... h5 {[%clk 0:01:45.7]} 26. Kg1 {[%clk 0:02:05.3]} 26...
Qg5 {[%clk 0:01:39.3]} 27. h4 {[%clk 0:02:05.9]} 27... Qf5 {[%clk 0:01:40.5]}
28. Bf1 {[%clk 0:01:49.1]} 28... Ne4 {[%clk 0:01:15.9]} 29. Bf4 {[%clk
0:01:49.8]} 29... Bh6 {[%clk 0:01:07.5]} 30. f3 {[%clk 0:01:32.7]} 30... Bf8
{[%clk 0:00:43.2]} 31. fxe4 {[%clk 0:01:27.6]} 31... Qxe4 {[%clk 0:00:45.1]} 32.
Qb3 {[%clk 0:01:26.3]} 32... Rd2 {[%clk 0:00:46.5]} 33. Nxd2 {[%clk 0:01:15.2]}
33... Rxd2 {[%clk 0:00:48.4]} 34. Qc4 {[%clk 0:01:06.9]} 34... Rxg2+ {[%clk
0:00:48.8]} 35. Kh1 {[%clk 0:01:08.6]} 35... Rg4+ {[%clk 0:00:48.3]} 36. Qxe4
{[%clk 0:01:08.7]} 36... Bxe4+ {[%clk 0:00:45.4]} 37. Kh2 {[%clk 0:01:10.4]}
37... Be7 {[%clk 0:00:39.7]} 38. Bg3 {[%clk 0:01:10.1]} 38... g5 {[%clk
0:00:32.1]} 39. Bh3 {[%clk 0:01:10.2]} 39... Rxg3 {[%clk 0:00:29.4]} 40. Kxg3
{[%clk 0:01:12.1]} 40... Bd6+ {[%clk 0:00:30.9]} 41. Kf2 {[%clk 0:01:12.5]}
41... gxh4 {[%clk 0:00:31.8]} 42. Rg1+ {[%clk 0:01:10.3]} 42... Kf8 {[%clk
0:00:33.2]} 43. Ra4 {[%clk 0:01:10.9]} 43... f5 {[%clk 0:00:30.9]} 44. Rxe4
{[%clk 0:01:11.7]} 44... fxe4 {[%clk 0:00:32]} 45. Rg5 {[%clk 0:01:13.2]} 45...
Bg3+ {[%clk 0:00:33.4]} 46. Ke2 {[%clk 0:01:13.6]} 46... Kf7 {[%clk 0:00:33.9]}
47. Rxh5 {[%clk 0:01:15.1]} 47... Kf6 {[%clk 0:00:35.8]} 48. b3 {[%clk
0:01:13.1]} 48... Kg6 {[%clk 0:00:36.4]} 49. Rd5 {[%clk 0:01:13.5]} 49... Kf7
{[%clk 0:00:36.9]} 50. Rd4 {[%clk 0:01:14.8]} 50... Ke7 {[%clk 0:00:37.3]} 51.
Rxe4+ {[%clk 0:01:16.1]} 51... Kd6 {[%clk 0:00:39.2]} 52. b4 {[%clk 0:01:17]}
52... Kc6 {[%clk 0:00:40.3]} 53. c4 {[%clk 0:01:17.7]} 53... b5 {[%clk
0:00:38.4]} 54. Re6+ {[%clk 0:01:18]} 54... Bd6 {[%clk 0:00:38.9]} 55. Kd3
{[%clk 0:01:18.6]} 55... bxc4+ {[%clk 0:00:38]} 56. Kxc4 {[%clk 0:01:20.5]}
56... Kb6 {[%clk 0:00:39.9]} 57. b5 {[%clk 0:01:21.8]} 57... Ka5 {[%clk
0:00:40.4]} 58. e4 {[%clk 0:01:21.6]} 58... Ka4 {[%clk 0:00:37.9]} 59. e5 {[%clk
0:01:22.8]} 59... Bb4 {[%clk 0:00:36.7]} 60. Rg6 {[%clk 0:01:22.9]} 60... c5
{[%clk 0:00:34.2]} 61. e6 {[%clk 0:01:23.1]} 61... Bc3 {[%clk 0:00:29.7]} 62. e7
{[%clk 0:01:24.1]} 62... Ka3 {[%clk 0:00:31]} 63. e8=Q {[%clk 0:01:26]} 63...
Bb4 {[%clk 0:00:29.1]} 64. Qe2 {[%clk 0:01:27.9]} 64... Ka4 {[%clk 0:00:29.7]}
65. Rg2 {[%clk 0:01:29.8]} 65... Ba3 {[%clk 0:00:29.8]} 66. Qc2+ {[%clk
0:01:30.2]} 66... Ka5 {[%clk 0:00:31.1]} 67. Qb3 {[%clk 0:01:31.3]} 67... Bb4
{[%clk 0:00:32.1]} 68. Ra2+ {[%clk 0:01:31.6]} 68... Kb6 {[%clk 0:00:33.2]} 69.
Qf3 {[%clk 0:01:30.4]} 69... Kc7 {[%clk 0:00:31.5]} 70. Qc6+ {[%clk 0:01:31.4]}
70... Kd8 {[%clk 0:00:32.8]} 71. Qd7# {[%clk 0:01:32.6]} 1-0

[Event "*** Titled Tuesday Blitz"]
[Site "Chess.com"]
[Date "2019.03.05"]
[Round "4"]
[White "BIG_Pirate"]
[Black "W_Amadeus"]
[Result "1/2-1/2"]
[WhiteElo "2373"]
[BlackElo "2624"]
[TimeControl "180+2"]
[EndTime "13:57:51 PST"]
[Termination "Game drawn by agreement"]

1. Nf3 {[%clk 0:03:01.9]} 1... d6 {[%clk 0:03:01.9]} 2. c4 {[%clk 0:03:03]} 2...
e5 {[%clk 0:03:02.2]} 3. Nc3 {[%clk 0:03:00]} 3... f5 {[%clk 0:03:03.2]} 4. d3
{[%clk 0:03:00.9]} 4... Nf6 {[%clk 0:03:03.8]} 5. g3 {[%clk 0:03:02.1]} 5... g6
{[%clk 0:03:04.9]} 6. Bg2 {[%clk 0:03:03.2]} 6... Bg7 {[%clk 0:03:06.5]} 7. O-O
{[%clk 0:03:04.4]} 7... O-O {[%clk 0:03:08.4]} 8. Bg5 {[%clk 0:03:05.5]} 8...
Nbd7 {[%clk 0:03:07.1]} 9. Nd5 {[%clk 0:03:06.1]} 9... c6 {[%clk 0:03:07.9]} 10.
Nxf6+ {[%clk 0:03:06.4]} 10... Nxf6 {[%clk 0:03:09.4]} 11. c5 {[%clk 0:03:05.7]}
11... Re8 {[%clk 0:03:07.4]} 12. cxd6 {[%clk 0:03:05.9]} 12... Qxd6 {[%clk
0:03:09.3]} 13. Rc1 {[%clk 0:02:58.8]} 13... Be6 {[%clk 0:03:09.3]} 14. Qa4
{[%clk 0:02:44.6]} 14... Nd5 {[%clk 0:02:53.8]} 15. Rfd1 {[%clk 0:02:34.5]}
15... Qb4 {[%clk 0:02:47.1]} 16. Qxb4 {[%clk 0:02:30.1]} 16... Nxb4 {[%clk
0:02:49]} 17. a3 {[%clk 0:02:31.7]} 17... Nd5 {[%clk 0:02:50.5]} 18. Bd2 {[%clk
0:01:48.4]} 18... e4 {[%clk 0:02:32.7]} 19. dxe4 {[%clk 0:01:49.2]} 19... fxe4
{[%clk 0:02:34.6]} 20. Ng5 {[%clk 0:01:50.5]} 20... Bf5 {[%clk 0:02:36.3]} 21.
Bc3 {[%clk 0:01:26]} 21... Nxc3 {[%clk 0:02:25.4]} 22. bxc3 {[%clk 0:01:27.1]}
22... h6 {[%clk 0:02:27]} 23. Nh3 {[%clk 0:01:27.2]} 23... g5 {[%clk 0:02:28.7]}
24. Kf1 {[%clk 0:01:28.3]} 24... Red8 {[%clk 0:02:23.7]} 25. Ke1 {[%clk
0:01:29.3]} 25... Rxd1+ {[%clk 0:02:13.5]} 26. Kxd1 {[%clk 0:01:29.9]} 26...
Rd8+ {[%clk 0:02:15.2]} 27. Ke1 {[%clk 0:01:30.9]} 27... Bf8 {[%clk 0:02:15.3]}
28. Ra1 {[%clk 0:01:29.3]} 28... Rd5 {[%clk 0:02:02.3]} 29. Ng1 {[%clk
0:01:12.7]} 29... Bg7 {[%clk 0:01:58.2]} 30. Rc1 {[%clk 0:01:10.3]} 30... Ra5
{[%clk 0:01:59.6]} 31. e3 {[%clk 0:01:05.6]} 31... Rxa3 {[%clk 0:01:54.1]} 32.
Ne2 {[%clk 0:01:07.1]} 32... c5 {[%clk 0:01:55.5]} 33. g4 {[%clk 0:00:55]} 33...
Bxg4 {[%clk 0:01:45.3]} 34. Bxe4 {[%clk 0:00:55.7]} 34... b6 {[%clk 0:01:46.8]}
35. Bd5+ {[%clk 0:00:48.7]} 35... Kf8 {[%clk 0:01:47.7]} 36. c4 {[%clk 0:00:50]}
36... Ra1 {[%clk 0:01:46.9]} 37. Rxa1 {[%clk 0:00:50.1]} 37... Bxa1 {[%clk
0:01:48.8]} 38. Ng3 {[%clk 0:00:50.4]} 38... a5 {[%clk 0:01:46.1]} 39. Kd2
{[%clk 0:00:51]} 39... a4 {[%clk 0:01:45.4]} 40. Kc2 {[%clk 0:00:52.2]} 40...
Ke7 {[%clk 0:01:42.6]} 41. Ne4 {[%clk 0:00:48.7]} 41... Be5 {[%clk 0:01:31.1]}
42. Nc3 {[%clk 0:00:48.9]} 42... a3 {[%clk 0:01:28.5]} 43. Kb3 {[%clk
0:00:49.4]} 43... Bxh2 {[%clk 0:00:58.3]} 44. Kxa3 {[%clk 0:00:49.8]} 44... Bg1
{[%clk 0:00:55.4]} 45. f3 {[%clk 0:00:46.7]} 45... Bd7 {[%clk 0:00:53.2]} 46. f4
{[%clk 0:00:36.1]} 46... Bxe3 {[%clk 0:00:50.7]} 47. fxg5 {[%clk 0:00:37.2]}
47... Bxg5 {[%clk 0:00:46.4]} 48. Na4 {[%clk 0:00:37.4]} 48... Bxa4 {[%clk
0:00:29.8]} 49. Kxa4 {[%clk 0:00:38.4]} 49... Bd2 {[%clk 0:00:29.3]} 50. Kb3
{[%clk 0:00:36]} 50... Kf6 {[%clk 0:00:29.6]} 51. Kc2 {[%clk 0:00:37]} 51... Ba5
{[%clk 0:00:29.8]} 52. Kd3 {[%clk 0:00:38.1]} 52... Ke5 {[%clk 0:00:27.7]} 53.
Bc6 {[%clk 0:00:38.3]} 53... h5 {[%clk 0:00:28.5]} 54. Ke2 {[%clk 0:00:38.9]}
54... h4 {[%clk 0:00:20.2]} 55. Kf2 {[%clk 0:00:39.9]} 55... Kf4 {[%clk
0:00:19.8]} 56. Kg2 {[%clk 0:00:41]} 56... Ke3 {[%clk 0:00:16.7]} 57. Kh3 {[%clk
0:00:41.8]} 57... Be1 {[%clk 0:00:18.1]} 58. Bb5 {[%clk 0:00:42.7]} 58... Bg3
{[%clk 0:00:16.3]} 59. Ba6 {[%clk 0:00:44]} 59... Kd4 {[%clk 0:00:10.2]} 60. Bb5
{[%clk 0:00:45.9]} 1/2-1/2

[Event "*** Titled Tuesday Blitz"]
[Site "Chess.com"]
[Date "2019.03.05"]
[Round "4"]
[White "STAYFlow"]
[Black "yuki_chess123"]
[Result "1-0"]
[WhiteElo "2246"]
[BlackElo "2132"]
[TimeControl "180+2"]
[EndTime "13:57:52 PST"]
[Termination "STAYFlow won by resignation"]

1. d4 {[%clk 0:03:01.9]} 1... g6 {[%clk 0:03:01]} 2. Nf3 {[%clk 0:03:01.2]} 2...
Bg7 {[%clk 0:03:02.1]} 3. g3 {[%clk 0:03:02.8]} 3... Nf6 {[%clk 0:03:02.2]} 4.
Bg2 {[%clk 0:03:04.3]} 4... d6 {[%clk 0:03:02.3]} 5. c4 {[%clk 0:03:05.2]} 5...
O-O {[%clk 0:03:03.7]} 6. Nc3 {[%clk 0:03:06.8]} 6... Nbd7 {[%clk 0:03:05.2]} 7.
O-O {[%clk 0:03:08.1]} 7... e5 {[%clk 0:03:06.7]} 8. e4 {[%clk 0:03:09.6]} 8...
Re8 {[%clk 0:03:08]} 9. h3 {[%clk 0:03:10.2]} 9... exd4 {[%clk 0:03:09.4]} 10.
Nxd4 {[%clk 0:03:11.3]} 10... Nc5 {[%clk 0:03:10.9]} 11. Qc2 {[%clk 0:02:38.2]}
11... Bd7 {[%clk 0:03:07.9]} 12. Be3 {[%clk 0:02:34.2]} 12... Qc8 {[%clk
0:03:08.6]} 13. Kh2 {[%clk 0:02:31.6]} 13... Re5 {[%clk 0:03:09.6]} 14. Nd5
{[%clk 0:01:55.4]} 14... Nxd5 {[%clk 0:02:58]} 15. cxd5 {[%clk 0:01:48.5]} 15...
a5 {[%clk 0:01:53.1]} 16. f4 {[%clk 0:01:38.5]} 16... Re8 {[%clk 0:01:53.7]} 17.
Rae1 {[%clk 0:01:35.8]} 17... f5 {[%clk 0:01:47]} 18. e5 {[%clk 0:01:07.1]}
18... Qd8 {[%clk 0:00:53.8]} 19. e6 {[%clk 0:01:00.5]} 19... Bc8 {[%clk
0:00:44.8]} 20. Bf2 {[%clk 0:00:47.1]} 20... Qf6 {[%clk 0:00:42.9]} 21. Nf3
{[%clk 0:00:43.9]} 21... Qxb2 {[%clk 0:00:40.6]} 22. Qxb2 {[%clk 0:00:43.5]}
22... Bxb2 {[%clk 0:00:40.4]} 23. Rb1 {[%clk 0:00:42]} 23... Bf6 {[%clk
0:00:37.9]} 24. Bxc5 {[%clk 0:00:29.6]} 24... dxc5 {[%clk 0:00:38.4]} 25. Rfc1
{[%clk 0:00:31.3]} 25... Be7 {[%clk 0:00:37.7]} 26. Ne5 {[%clk 0:00:29.9]} 26...
Bd6 {[%clk 0:00:35.4]} 27. Nc4 {[%clk 0:00:28.9]} 27... Rd8 {[%clk 0:00:19]} 28.
Nxd6 {[%clk 0:00:28.9]} 28... cxd6 {[%clk 0:00:19.4]} 29. g4 {[%clk 0:00:25.7]}
29... Kf8 {[%clk 0:00:19.6]} 30. gxf5 {[%clk 0:00:23.8]} 30... gxf5 {[%clk
0:00:21.5]} 31. h4 {[%clk 0:00:24.9]} 31... Ke7 {[%clk 0:00:21.7]} 32. Bh3
{[%clk 0:00:26.4]} 32... Rf8 {[%clk 0:00:21.9]} 33. Rg1 {[%clk 0:00:27.7]} 33...
Bxe6 {[%clk 0:00:20.5]} 34. Rbe1 {[%clk 0:00:25.8]} 34... Rf6 {[%clk 0:00:20.6]}
35. Rg7+ {[%clk 0:00:21.7]} 35... Kf8 {[%clk 0:00:21.5]} 36. Rxb7 {[%clk
0:00:16.5]} 36... Bxd5 {[%clk 0:00:21.9]} 37. Rxh7 {[%clk 0:00:16.1]} 37... Kg8
{[%clk 0:00:20.9]} 38. Rd7 {[%clk 0:00:15.1]} 38... Raf8 {[%clk 0:00:20.6]} 39.
Rg1+ {[%clk 0:00:15.9]} 39... Kh8 {[%clk 0:00:21.4]} 40. Rgg7 {[%clk 0:00:17.5]}
40... Bg8 {[%clk 0:00:22.2]} 41. Rg5 {[%clk 0:00:15.9]} 41... Rh6 {[%clk
0:00:23.2]} 42. Kg3 {[%clk 0:00:14]} 42... Re8 {[%clk 0:00:20.3]} 43. Bxf5
{[%clk 0:00:12.1]} 43... Re3+ {[%clk 0:00:21]} 44. Kf2 {[%clk 0:00:12.6]} 44...
Ra3 {[%clk 0:00:22.2]} 45. Rd8 {[%clk 0:00:06.1]} 45... Rxa2+ {[%clk 0:00:23.3]}
46. Kg3 {[%clk 0:00:06.4]} 46... Ra3+ {[%clk 0:00:23.5]} 47. Kg4 {[%clk
0:00:07.7]} 47... Rg6 {[%clk 0:00:21]} 48. Rxg6 {[%clk 0:00:08.3]} 48... Kh7
{[%clk 0:00:21.4]} 49. Rgxg8+ {[%clk 0:00:07.2]} 49... Kh6 {[%clk 0:00:21.8]}
50. Rd7 {[%clk 0:00:06.8]} 1-0

[Event "*** Titled Tuesday Blitz"]
[Site "Chess.com"]
[Date "2019.03.05"]
[Round "4"]
[White "Gr3egor"]
[Black "grzechu96"]
[Result "1-0"]
[WhiteElo "2507"]
[BlackElo "2539"]
[TimeControl "180+2"]
[EndTime "13:57:54 PST"]
[Termination "Gr3egor won by resignation"]

1. d4 {[%clk 0:03:01.9]} 1... d5 {[%clk 0:02:59.6]} 2. c4 {[%clk 0:03:02.5]}
2... c6 {[%clk 0:03:01.1]} 3. cxd5 {[%clk 0:03:04.1]} 3... cxd5 {[%clk 0:03:03]}
4. Nc3 {[%clk 0:03:05.8]} 4... Nf6 {[%clk 0:03:03.1]} 5. Bf4 {[%clk 0:03:06.7]}
5... Nc6 {[%clk 0:03:03.7]} 6. e3 {[%clk 0:03:06.9]} 6... Bf5 {[%clk 0:03:05]}
7. Qb3 {[%clk 0:03:01.9]} 7... Na5 {[%clk 0:03:06.3]} 8. Qa4+ {[%clk 0:03:02.9]}
8... Bd7 {[%clk 0:03:07.8]} 9. Qc2 {[%clk 0:03:04.4]} 9... e6 {[%clk 0:03:09.4]}
10. Bd3 {[%clk 0:03:05.8]} 10... Nc6 {[%clk 0:03:02.7]} 11. a3 {[%clk
0:03:05.9]} 11... Be7 {[%clk 0:02:28.6]} 12. Nf3 {[%clk 0:03:05.8]} 12... Rc8
{[%clk 0:02:24]} 13. O-O {[%clk 0:03:02.5]} 13... Nh5 {[%clk 0:02:13.5]} 14. Be5
{[%clk 0:02:57.3]} 14... Nxe5 {[%clk 0:02:14.6]} 15. Nxe5 {[%clk 0:02:58]} 15...
Nf6 {[%clk 0:02:12.9]} 16. Qb3 {[%clk 0:02:48.9]} 16... Rb8 {[%clk 0:01:46.6]}
17. Nxd7 {[%clk 0:02:28.3]} 17... Nxd7 {[%clk 0:01:46.6]} 18. f4 {[%clk
0:02:14]} 18... O-O {[%clk 0:01:29.3]} 19. Rf3 {[%clk 0:02:15.2]} 19... f5
{[%clk 0:01:25.7]} 20. h3 {[%clk 0:02:16.3]} 20... Nf6 {[%clk 0:01:25.3]} 21.
Kh1 {[%clk 0:02:02.1]} 21... a6 {[%clk 0:01:24.3]} 22. Na4 {[%clk 0:01:56.8]}
22... Qc7 {[%clk 0:01:17.4]} 23. Rff1 {[%clk 0:01:56]} 23... b5 {[%clk
0:00:46.6]} 24. Nc5 {[%clk 0:01:37.9]} 24... Bxc5 {[%clk 0:00:47.2]} 25. Rac1
{[%clk 0:01:39.4]} 25... Nd7 {[%clk 0:00:43.1]} 26. dxc5 {[%clk 0:01:39.3]}
26... Qc6 {[%clk 0:00:30.8]} 27. Qc3 {[%clk 0:01:38.2]} 27... g6 {[%clk
0:00:29.9]} 28. b4 {[%clk 0:01:36.8]} 28... Rfe8 {[%clk 0:00:29.7]} 29. Ra1
{[%clk 0:01:31.3]} 29... e5 {[%clk 0:00:29.8]} 30. fxe5 {[%clk 0:01:30.9]} 30...
Rxe5 {[%clk 0:00:30.1]} 31. a4 {[%clk 0:00:58.3]} 31... Rxe3 {[%clk 0:00:27]}
32. Bxb5 {[%clk 0:00:49.5]} 32... Rxc3 {[%clk 0:00:25.7]} 33. Bxc6 {[%clk
0:00:50.7]} 33... Nf6 {[%clk 0:00:27.4]} 34. Rab1 {[%clk 0:00:46.2]} 34... d4
{[%clk 0:00:27.9]} 35. Rf3 {[%clk 0:00:21.3]} 35... Rc4 {[%clk 0:00:25.3]} 36.
Rfb3 {[%clk 0:00:19.1]} 36... Kg7 {[%clk 0:00:23.8]} 37. Kh2 {[%clk 0:00:15.4]}
37... Ne4 {[%clk 0:00:20.3]} 38. Bxe4 {[%clk 0:00:13.6]} 38... fxe4 {[%clk
0:00:22.2]} 39. b5 {[%clk 0:00:14.9]} 39... axb5 {[%clk 0:00:21.7]} 40. Rxb5
{[%clk 0:00:15.7]} 40... Rxb5 {[%clk 0:00:22.1]} 41. axb5 {[%clk 0:00:17.3]}
41... Rxc5 {[%clk 0:00:23.2]} 42. b6 {[%clk 0:00:16.9]} 42... Rc8 {[%clk
0:00:24.7]} 43. Rb4 {[%clk 0:00:18.1]} 43... Rd8 {[%clk 0:00:16.1]} 44. b7
{[%clk 0:00:18.3]} 44... e3 {[%clk 0:00:16.4]} 45. Rxd4 {[%clk 0:00:18.5]} 45...
Rb8 {[%clk 0:00:16.8]} 46. Rd7+ {[%clk 0:00:17.8]} 46... Kf6 {[%clk 0:00:17.6]}
47. Kg3 {[%clk 0:00:19.2]} 47... h5 {[%clk 0:00:16.2]} 48. Kf3 {[%clk
0:00:19.9]} 48... Ke6 {[%clk 0:00:17.6]} 49. Rg7 {[%clk 0:00:20.9]} 49... Kf6
{[%clk 0:00:18.8]} 50. Rc7 {[%clk 0:00:22.5]} 50... Kg5 {[%clk 0:00:14.7]} 51.
Kxe3 {[%clk 0:00:22.6]} 51... Kf5 {[%clk 0:00:15.5]} 52. Kd4 {[%clk 0:00:22.1]}
52... Kf4 {[%clk 0:00:15.7]} 53. Rg7 {[%clk 0:00:23.1]} 53... g5 {[%clk
0:00:17]} 54. Kc5 {[%clk 0:00:23.3]} 54... g4 {[%clk 0:00:18.6]} 55. hxg4 {[%clk
0:00:24.4]} 55... hxg4 {[%clk 0:00:19.8]} 56. Kc6 {[%clk 0:00:25.9]} 56... Kg3
{[%clk 0:00:19.1]} 57. Kc7 {[%clk 0:00:26.9]} 57... Rg8 {[%clk 0:00:16.9]} 58.
Rxg8 {[%clk 0:00:27.8]} 1-0

[Event "*** Titled Tuesday Blitz"]
[Site "Chess.com"]
[Date "2019.03.05"]
[Round "4"]
[White "GadimbayliA"]
[Black "bootstar"]
[Result "1-0"]
[WhiteElo "2849"]
[BlackElo "2608"]
[TimeControl "180+2"]
[EndTime "13:57:55 PST"]
[Termination "GadimbayliA won by checkmate"]

1. e4 {[%clk 0:03:01.9]} 1... c5 {[%clk 0:03:00]} 2. Nf3 {[%clk 0:03:00.6]} 2...
Nc6 {[%clk 0:03:01.5]} 3. Bb5 {[%clk 0:03:01.1]} 3... d6 {[%clk 0:03:02.4]} 4.
O-O {[%clk 0:03:01.1]} 4... Bd7 {[%clk 0:03:03.7]} 5. Nc3 {[%clk 0:02:59.2]}
5... a6 {[%clk 0:03:03.1]} 6. Bxc6 {[%clk 0:03:00.5]} 6... Bxc6 {[%clk
0:03:04.7]} 7. d4 {[%clk 0:03:02.4]} 7... cxd4 {[%clk 0:03:06.1]} 8. Nxd4 {[%clk
0:03:04.3]} 8... Rc8 {[%clk 0:03:07.2]} 9. Re1 {[%clk 0:03:05]} 9... e6 {[%clk
0:03:05.5]} 10. Nd5 {[%clk 0:02:53.3]} 10... e5 {[%clk 0:02:37.9]} 11. Nf5
{[%clk 0:02:50]} 11... g6 {[%clk 0:02:32.7]} 12. Nfe3 {[%clk 0:02:50]} 12... Bg7
{[%clk 0:02:29.7]} 13. a4 {[%clk 0:02:45]} 13... Ne7 {[%clk 0:02:26.8]} 14. c3
{[%clk 0:02:42.3]} 14... O-O {[%clk 0:02:23]} 15. Nxe7+ {[%clk 0:02:38.9]} 15...
Qxe7 {[%clk 0:02:22.2]} 16. Nd5 {[%clk 0:02:40.8]} 16... Qe6 {[%clk 0:02:15.7]}
17. Bg5 {[%clk 0:02:33.1]} 17... Rfe8 {[%clk 0:02:04.5]} 18. Nb6 {[%clk
0:02:08.4]} 18... Rc7 {[%clk 0:02:05]} 19. Qd2 {[%clk 0:01:57.3]} 19... f6
{[%clk 0:02:05.5]} 20. Bh4 {[%clk 0:01:56.7]} 20... g5 {[%clk 0:01:52]} 21. Bg3
{[%clk 0:01:56.5]} 21... Bf8 {[%clk 0:01:44.6]} 22. Rad1 {[%clk 0:01:52.4]}
22... Qb3 {[%clk 0:01:29.1]} 23. a5 {[%clk 0:01:37.4]} 23... Qe6 {[%clk
0:01:06.7]} 24. f3 {[%clk 0:01:31]} 24... h5 {[%clk 0:01:05.9]} 25. Bf2 {[%clk
0:01:26.2]} 25... h4 {[%clk 0:01:03.4]} 26. h3 {[%clk 0:01:26.4]} 26... Rd8
{[%clk 0:00:58.2]} 27. c4 {[%clk 0:01:26.7]} 27... Re8 {[%clk 0:00:53.5]} 28. b3
{[%clk 0:01:26]} 28... Kf7 {[%clk 0:00:50.7]} 29. Re2 {[%clk 0:01:19.6]} 29...
Kg6 {[%clk 0:00:51.5]} 30. Qd3 {[%clk 0:01:18.7]} 30... f5 {[%clk 0:00:35.9]}
31. b4 {[%clk 0:00:53.2]} 31... fxe4 {[%clk 0:00:35]} 32. fxe4 {[%clk
0:00:55.1]} 32... Rb8 {[%clk 0:00:18.3]} 33. Be3 {[%clk 0:00:42.8]} 33... Be7
{[%clk 0:00:15.7]} 34. b5 {[%clk 0:00:42.6]} 34... Be8 {[%clk 0:00:12.7]} 35.
Nd5 {[%clk 0:00:43.4]} 35... Rcc8 {[%clk 0:00:12.7]} 36. Nxe7+ {[%clk
0:00:33.8]} 36... Qxe7 {[%clk 0:00:13.2]} 37. Rf2 {[%clk 0:00:30.5]} 37... Rd8
{[%clk 0:00:05.8]} 38. Rf5 {[%clk 0:00:30.5]} 38... axb5 {[%clk 0:00:05.8]} 39.
cxb5 {[%clk 0:00:31.8]} 39... Rbc8 {[%clk 0:00:06.1]} 40. a6 {[%clk 0:00:26.2]}
40... bxa6 {[%clk 0:00:06.7]} 41. bxa6 {[%clk 0:00:28.1]} 41... Kh7 {[%clk
0:00:07.8]} 42. Bxg5 {[%clk 0:00:28.8]} 42... Qa7+ {[%clk 0:00:07.7]} 43. Be3
{[%clk 0:00:29.6]} 43... Qc7 {[%clk 0:00:07.9]} 44. Qe2 {[%clk 0:00:25.7]} 44...
Bg6 {[%clk 0:00:09.3]} 45. Rf6 {[%clk 0:00:24.1]} 45... Qc3 {[%clk 0:00:07.5]}
46. Rxg6 {[%clk 0:00:19.5]} 46... Kxg6 {[%clk 0:00:08]} 47. Qg4+ {[%clk
0:00:20.8]} 47... Kh7 {[%clk 0:00:04.3]} 48. Qxh4+ {[%clk 0:00:22.1]} 48... Kg8
{[%clk 0:00:05]} 49. Qg5+ {[%clk 0:00:23.4]} 49... Kh7 {[%clk 0:00:06.4]} 50.
Rf1 {[%clk 0:00:23.7]} 50... Rf8 {[%clk 0:00:05.1]} 51. Qh6+ {[%clk 0:00:23.9]}
51... Kg8 {[%clk 0:00:06.3]} 52. Qe6+ {[%clk 0:00:23.2]} 52... Kg7 {[%clk
0:00:06.7]} 53. Bh6+ {[%clk 0:00:23.8]} 53... Kh7 {[%clk 0:00:08]} 54. Bxf8
{[%clk 0:00:24.4]} 54... Qe3+ {[%clk 0:00:08.5]} 55. Kh1 {[%clk 0:00:25.3]}
55... Rc1 {[%clk 0:00:04.1]} 56. Qf7+ {[%clk 0:00:25.1]} 56... Kh8 {[%clk
0:00:04.6]} 57. Qg7# {[%clk 0:00:27]} 1-0